bitfinex-derivatives/quotes_ETHF0:USTF0_20251008
["timestamp","ask_amount","ask_price","bid_price","bid_amount"]
[1759929849259,1.16424,4482.4,4482.3,0.00230664]
[1759929849656,5.32711187,4482.4,4482.3,0.00230664]
[1759929849969,0.7628,4481.7,4481.6,0.40151]
[1759929850165,2.19394222,4481.7,4481.6,0.40151]
[1759929851067,2.19394222,4481.7,4481.6,0.60894308]
[1759929853774,2.19394222,4481.7,4481.6,0.20743308]
[1759929854373,2.19394222,4481.7,4481.6,0.00183308]
[1759929855174,5.12517303,4481.7,4481.6,0.00183308]
[1759929856969,5.52668303,4481.7,4481.6,0.00183308]
[1759929862966,5.52668303,4481.7,4481.6,1.14655308]
[1759929862967,0.7628,4481.7,4481.6,1.14655308]
[1759929863169,1.38831,4481.7,4481.6,0.40335308]
[1759929864773,4.33554771,4481.7,4481.6,0.00183308]
[1759929865372,5.54368993,4481.7,4481.6,0.21633308]
[1759929865871,5.54368993,4481.7,4481.6,0.00183308]
[1759929869571,5.54368993,4481.7,4481.6,0.40335308]
[1759929870380,5.54368993,4481.7,4481.6,0.00183308]
[1759929871276,5.54368993,4481.7,4481.6,0.40335308]
[1759929872575,3.93403771,4481.7,4481.6,0.82815308]
[1759929872783,0.93428,4482.0,4481.9,1.14469]
[1759929873077,1.50568,4482.0,4481.9,0.61599]
[1759929873277,1.50568,4482.0,4481.9,0.40149]
[1759929875580,1.1042,4482.0,4481.9,0.61599]
[1759929876076,1.1042,4482.0,4481.9,0.93439]
[1759929876276,1.50568,4482.0,4481.9,0.93439]
[1759929876479,1.1042,4482.0,4481.9,0.93439]
[1759929876677,1.1042,4482.0,4481.9,1.14469]
[1759929877082,1.50568,4482.0,4481.9,1.14469]
[1759929878184,1.50568,4482.0,4481.9,4.35249]
[1759929878583,0.5328,4482.5,4482.4,1.14464]
[1759929878882,0.7568,4482.5,4482.4,4.35244]
[1759929879081,2.71378222,4482.5,4482.4,3.2078]
[1759929879486,2.71378222,4482.5,4482.4,3.60924]
[1759929879781,2.31234222,4482.5,4482.4,3.60924]
[1759929879986,1.1042,4482.5,4482.4,3.82374]
[1759929881779,1.1042,4482.5,4482.4,4.36234]
[1759929883284,1.1042,4482.5,4482.4,4.03404]
[1759929884786,1.50564,4482.5,4482.4,4.03404]
[1759929885386,1.50564,4482.5,4482.4,3.2078]
[1759929885689,0.7582,4481.9,4481.8,3.8374]
[1759929885893,0.9822,4481.9,4481.8,3.8374]
[1759929886081,0.9822,4481.9,4481.8,4.3783]
[1759929886489,0.7758,4481.9,4481.8,4.3783]
[1759929886687,0.5518,4481.9,4481.8,4.3783]
[1759929886886,0.40146,4482.3,4482.2,0.84516]
[1759929886887,1.14956,4482.3,4482.2,0.84516]
[1759929887087,1.37356,4482.3,4482.2,1.15586]
[1759929887290,1.37356,4482.3,4482.2,0.7544]
[1759929887484,1.37356,4482.3,4482.2,0.4437]
[1759929887684,1.37356,4482.3,4482.2,0.62666]
[1759929888391,1.37356,4482.3,4482.2,0.2252]
[1759929888691,1.14956,4482.2,4482.1,0.40147]
[1759929889086,1.14956,4482.2,4482.1,0.62667]
[1759929889787,0.7481,4482.2,4482.1,0.62667]
[1759929890089,0.224,4482.3,4482.2,0.84516]
[1759929890293,0.7477,4482.3,4482.2,1.15586]
[1759929890988,0.5237,4482.3,4482.2,1.15586]
[1759929891187,0.7477,4482.3,4482.2,1.15586]
[1759929892294,0.9721,4482.3,4482.2,1.15586]
[1759929892791,0.9721,4482.3,4482.2,0.84516]
[1759929892994,0.9721,4482.3,4482.2,1.15586]
[1759929894992,0.9721,4482.3,4482.2,4.36366]
[1759929896394,0.224,4482.3,4482.2,4.36366]
[1759929896692,0.7477,4482.3,4482.2,4.36366]
[1759929898090,0.9721,4482.3,4482.2,4.36366]
[1759929898291,2.87884135,4482.3,4482.2,3.2078]
[1759929899188,2.47739135,4482.3,4482.2,3.60926]
[1759929899394,2.47739135,4482.3,4482.2,3.83446]
[1759929899595,2.47739135,4482.3,4482.2,4.14516]
[1759929899997,2.87884135,4482.3,4482.2,3.83446]
[1759929900195,0.7481,4482.3,4482.2,3.83446]
[1759929900495,0.21317141,4483.1,4483.0,1.28719]
[1759929900695,0.3608,4483.5,4483.0,1.28719]
[1759929900696,0.5237,4483.5,4483.4,0.62656]
[1759929900900,0.7481,4483.9,4483.8,1.15572]
[1759929901100,0.9721,4483.9,4483.8,3.9622]
[1759929901694,0.97480953,4483.9,4483.8,3.9622]
[1759929903192,0.1368,4483.5,4483.1,5.12008904]
[1759929903399,0.7481,4483.2,4483.1,4.14508]
[1759929903604,0.7481,4483.2,4483.1,4.36358]
[1759929903797,0.5237,4483.8,4483.7,0.40133]
[1759929904099,0.7477,4483.8,4483.7,4.36353]
[1759929904693,0.9721,4483.8,4483.7,4.36353]
[1759929904901,0.00270953,4483.9,4483.7,5.80728832]
[1759929905096,0.22670953,4483.9,4483.8,2.25969135]
[1759929906902,0.00270953,4483.9,4483.8,2.25969135]
[1759929907497,0.75080953,4483.9,4483.8,0.4437]
[1759929908407,2.25610088,4483.9,4483.8,0.2252]
[1759929908706,0.7481,4483.8,4483.7,4.96225832]
[1759929909300,0.7481,4483.8,4483.7,5.18745832]
[1759929911000,0.7481,4483.8,4483.7,4.96225832]
[1759929911001,1.14942,4483.8,4483.7,4.96225832]
[1759929912297,1.37242,4483.8,4483.7,4.96225832]
[1759929913408,1.37242,4483.8,4483.7,5.36358832]
[1759929915806,4.32234726,4483.8,4483.7,1.75445832]
[1759929916002,0.7481,4483.3,4483.2,3.60917]
[1759929916207,2.47639135,4483.3,4483.2,5.4264265]
[1759929918299,0.9711,4483.3,4483.2,5.6543265]
[1759929918608,0.9711,4483.3,4483.2,6.1928265]
[1759929919014,0.5237,4483.3,4483.2,6.1928265]
[1759929919214,0.223,4483.3,4483.2,6.1928265]
[1759929919510,0.00270953,4483.9,4483.8,0.40132]
[1759929919810,0.00270953,4483.9,4483.8,1.16772]
[1759929919811,3.68763484,4483.9,4483.8,1.16772]
[1759929920014,3.46463484,4483.9,4483.8,1.16772]
[1759929920312,0.22570953,4483.9,4483.8,1.16772]
[1759929926304,0.74890953,4483.9,4483.8,1.16772]
[1759929929017,0.22570953,4483.9,4483.8,1.16772]
[1759929929213,0.00270953,4483.9,4483.8,1.16772]
[1759929933316,0.00270953,4483.9,4483.7,4.80938904]
[1759929933317,1.15182,4483.8,4483.7,3.2078]
[1759929934422,0.7505,4483.8,4483.7,3.2078]
[1759929935723,8.68642695,4483.8,4483.7,3.2078]
[1759929935925,0.7505,4483.3,4483.0,3.2078]
[1759929936218,0.8809,4483.0,4482.9,0.40139]
[1759929939325,0.8809,4483.0,4482.9,2.16543458]
[1759929939626,0.8809,4483.0,4482.9,0.40139]
[1759929940822,0.8809,4483.0,4482.9,2.14242298]
[1759929942026,2.08866667,4483.0,4482.9,2.14242298]
[1759929942519,2.08866667,4483.0,4482.9,1.74103298]
[1759929942720,0.3081,4482.9,4482.8,0.40141]
[1759929942926,0.7521,4482.9,4482.8,0.40141]
[1759929944726,0.9751,4482.9,4482.8,0.40141]
[1759929945026,0.9751,4482.9,4482.8,2.40956246]
[1759929949430,0.9751,4482.9,4482.8,2.72246246]
[1759929949730,0.9751,4482.9,4482.8,2.40956246]
[1759929950525,0.9751,4482.9,4482.8,2.18226246]
[1759929952130,0.9751,4482.9,4482.8,2.40966246]
[1759929952938,0.223,4482.9,4482.8,4.14452913]
[1759929953137,0.00270953,4483.9,4483.3,1.00342]
[1759929953334,0.84621953,4483.9,4483.8,0.2274]
[1759929953634,3.98793027,4483.9,4483.8,0.2274]
[1759929953827,0.61963,4483.7,4483.6,0.62874]
[1759929954124,2.38479667,4483.7,4483.6,0.62874]
[1759929954329,1.98346667,4483.7,4483.6,0.62874]
[1759929956233,2.20646667,4483.7,4483.6,0.62874]
[1759929956438,2.60779667,4483.7,4483.6,0.62874]
[1759929957335,2.20646667,4483.7,4483.6,0.62874]
[1759929959136,2.20646667,4483.7,4483.6,1.15584]
[1759929967143,2.60779667,4483.7,4483.6,0.4416]
[1759929967338,1.17706,4483.4,4483.3,3.2078]
[1759929967532,2.60782667,4483.4,4483.3,3.2078]
[1759929967737,5.46667272,4483.4,4483.3,3.2078]
[1759929968944,5.46667272,4483.4,4483.3,3.60916]
[1759929970246,5.06531272,4483.4,4483.3,3.60916]
[1759929970446,5.46667272,4483.4,4483.3,3.60916]
[1759929971039,5.46667272,4483.4,4483.3,3.2078]
[1759929971445,5.46667272,4483.4,4483.3,3.60916]
[1759929972943,5.46667272,4483.4,4483.3,4.36366]
[1759929972944,0.7757,4483.4,4483.3,4.36366]
[1759929973144,1.17971953,4483.9,4483.8,0.62872]
[1759929973349,1.40271953,4483.9,4483.8,0.62872]
[1759929974041,1.00140953,4483.9,4483.8,0.62872]
[1759929974240,1.40271953,4483.9,4483.8,1.15582]
[1759929974547,1.40271953,4483.9,4483.8,0.84292]
[1759929974749,1.40271953,4483.9,4483.8,0.62872]
[1759929975548,1.40271953,4483.9,4483.8,0.2274]
[1759929975747,1.17703,4483.7,4483.6,0.62874]
[1759929975948,1.40003,4483.7,4483.6,0.40134]
[1759929976747,1.40003,4483.7,4483.3,3.2078]
[1759929976748,1.16496,4483.4,4483.3,3.2078]
[1759929976937,2.59572667,4483.4,4483.3,3.2078]
[1759929977342,0.95429,4483.0,4482.9,0.4014]
[1759929977651,2.72185667,4483.0,4482.9,0.4014]
[1759929978043,2.72185667,4483.0,4482.9,0.6163]
[1759929978549,1.51409,4483.0,4482.9,0.6163]
[1759929978747,1.51409,4483.0,4482.9,0.9296]
[1759929978942,0.6181,4482.9,4482.8,4.98865246]
[1759929979146,1.165,4482.9,4482.8,5.39006246]
[1759929979545,1.165,4482.9,4482.8,4.98865246]
[1759929979744,0.8897,4482.5,4482.4,0.40144]
[1759929979945,2.32046667,4482.5,4482.4,0.40144]
[1759929982648,1.1127,4482.5,4482.4,0.61634]
[1759929982955,1.1127,4482.5,4482.4,2.373802]
[1759929983152,1.1127,4482.5,4482.4,0.92964]
[1759929983760,1.1127,4482.5,4482.4,1.15364]
[1759929984256,0.7765,4482.5,4482.4,1.15364]
[1759929984452,0.223,4482.5,4482.4,2.97461397]
[1759929984651,0.7765,4482.5,4482.4,2.97461397]
[1759929988166,0.1261,4483.0,4482.4,2.25987397]
[1759929988374,0.5535,4483.0,4482.9,1.1536]
[1759929988562,0.7765,4483.0,4482.9,1.1536]
[1759929988760,0.9866,4483.0,4482.9,1.1536]
[1759929989670,0.223,4483.0,4482.9,1.1536]
[1759929991467,0.7765,4483.0,4482.9,1.1536]
[1759929992169,0.4397,4483.0,4482.9,1.1536]
[1759929993176,0.223,4483.0,4482.9,1.1536]
[1759929994966,0.7765,4483.0,4482.9,1.1536]
[1759929995876,0.9866,4483.0,4482.9,1.1536]
[1759929996072,1.1127,4483.0,4482.9,0.4014]
[1759929996477,1.1127,4483.0,4482.8,3.2078]
[1759929996478,0.7382,4482.9,4482.8,3.2078]
[1759929996678,2.37276667,4482.9,4482.8,3.2078]
[1759929997680,2.37276667,4482.9,4482.5,0.40143]
[1759929997681,1.16503,4482.6,4482.5,0.40143]
[1759929997879,1.29114,4482.5,4482.4,1.80025664]
[1759929998074,0.3368,4482.4,4482.3,3.2078]
[1759929998271,0.7636,4482.4,4482.3,3.60925]
[1759929998578,1.16505,4482.4,4482.3,3.60925]
[1759929998777,0.7636,4482.4,4482.2,1.7948286]
[1759929998968,0.7636,4482.4,4481.6,0.00183308]
[1759929998969,0.4268,4481.7,4481.6,0.00183308]
[1759929999177,0.9866,4481.7,4481.6,0.53003308]
[1759929999475,2.19436667,4481.7,4481.6,0.75403308]
[1759930002784,2.19436667,4481.7,4481.6,0.44073308]
[1759930002984,2.19436667,4481.7,4481.6,2.24900626]
[1759930003180,2.19436667,4481.7,4481.6,1.81010626]
[1759930003674,2.19436667,4481.7,4481.6,0.22163308]
[1759930003873,0.9866,4481.7,4481.6,0.22163308]
[1759930004283,0.9866,4481.7,4481.6,1.99564744]
[1759930005074,0.9866,4481.7,4481.6,2.52444744]
[1759930006179,0.9866,4481.7,4481.6,1.99564744]
[1759930008186,0.9866,4481.7,4481.6,2.39716744]
[1759930008686,0.9866,4481.7,4481.6,2.72726744]
[1759930008882,0.9866,4481.7,4481.6,2.95386744]
[1759930009082,0.7636,4481.7,4481.6,2.95386744]
[1759930009277,0.7765,4481.7,4481.6,2.95386744]
[1759930010382,0.5633,4482.0,4481.9,0.85019]
[1759930010587,0.7863,4482.0,4481.9,4.38809]
[1759930011182,0.223,4482.0,4481.9,4.38809]
[1759930011385,0.7863,4482.0,4481.9,4.38809]
[1759930015591,0.223,4482.0,4481.9,4.38809]
[1759930016594,0.7863,4482.0,4481.9,4.38809]
[1759930016987,0.9938,4482.0,4481.9,4.38809]
[1759930017192,1.39528,4482.0,4481.9,4.38809]
[1759930017782,0.9938,4482.0,4481.9,4.38809]
[1759930020287,1.39528,4482.0,4481.9,4.38809]
[1759930020495,1.52388,4482.0,4481.9,3.2078]
[1759930022397,1.52388,4482.0,4481.9,3.60929]
[1759930022705,1.52388,4482.0,4481.9,3.2078]
[1759930023591,1.52388,4482.0,4481.9,3.60929]
[1759930023796,1.52388,4482.0,4481.9,3.2078]
[1759930027100,1.17231,4481.7,4481.6,0.00183308]
[1759930027305,2.90120633,4481.7,4481.6,0.00183308]
[1759930027605,5.78439176,4481.7,4481.6,0.00183308]
[1759930032207,1.17238,4480.9,4480.8,3.2078]
[1759930032397,2.90127633,4480.9,4480.8,3.2078]
[1759930033204,2.90127633,4480.9,4480.8,3.20958936]
[1759930033706,1.39538,4480.9,4480.8,3.20958936]
[1759930034012,0.9938,4480.9,4480.8,3.61117936]
[1759930035214,1.39538,4480.9,4480.8,3.61117936]
[1759930036206,1.39538,4480.9,4480.8,0.00178936]
[1759930036611,1.39538,4480.9,4480.8,0.40337936]
[1759930036806,0.4163,4481.4,4481.3,0.2225]
[1759930037007,0.4163,4481.4,4481.3,4.36334]
[1759930037212,0.6393,4481.4,4481.3,4.36334]
[1759930037508,0.971,4481.4,4481.3,4.36334]
[1759930038205,0.971,4481.4,4481.3,3.82534]
[1759930038206,1.37253,4481.4,4481.3,3.82534]
[1759930038612,0.971,4481.4,4481.3,3.82534]
[1759930040813,0.971,4481.4,4481.3,4.14084]
[1759930041313,0.7611,4481.4,4481.3,4.36334]
[1759930042412,0.3317,4481.7,4481.6,0.40152]
[1759930042706,3.2078,4482.2,4481.9,0.4385]
[1759930042707,0.2064,4482.0,4481.9,0.4385]
[1759930042901,0.4294,4482.0,4481.9,1.15549]
[1759930043105,0.6393,4482.0,4481.9,1.15549]
[1759930043308,0.971,4482.0,4481.9,1.15549]
[1759930044311,0.771,4482.0,4481.9,0.216]
[1759930044515,1.1027,4482.0,4481.9,0.61749]
[1759930044811,0.971,4482.0,4481.9,1.15549]
[1759930046012,0.7611,4482.0,4481.9,1.15549]
[1759930046605,1.50418,4482.0,4481.9,0.4385]
[1759930046916,1.14949,4481.9,4481.8,3.2078]
[1759930047115,0.40153,4481.4,4481.3,3.60934]
[1759930047312,0.971,4481.4,4481.3,3.60934]
[1759930047513,0.971,4481.4,4481.3,3.82534]
[1759930048310,0.748,4481.9,4481.8,0.4015]
[1759930048516,0.971,4481.9,4481.8,1.1555]
[1759930048716,0.971,4481.9,4481.8,4.3633]
[1759930049111,0.7611,4481.9,4481.8,4.3633]
[1759930049416,0.4294,4481.9,4481.8,4.3633]
[1759930049613,0.223,4481.9,4481.8,4.3633]
[1759930050418,0.971,4481.9,4481.8,4.3633]
[1759930050619,0.2064,4481.4,4481.3,3.6463]
[1759930050813,0.7611,4481.4,4481.3,3.9618]
[1759930051316,0.7611,4481.4,4481.3,4.36334]
[1759930051520,0.223,4481.4,4481.3,4.36334]
[1759930053317,0.971,4481.4,4481.3,3.82534]
[1759930054014,0.223,4481.4,4481.3,4.36334]
[1759930057724,0.971,4481.4,4481.3,4.36334]
[1759930060220,0.3317,4481.6,4481.3,3.2078]
[1759930060525,2.65542633,4481.4,4481.3,3.2078]
[1759930061021,1.14958,4480.9,4480.8,3.20958936]
[1759930061227,1.37258,4480.9,4480.8,3.61117936]
[1759930061524,1.37258,4480.9,4480.8,3.20958936]
[1759930062023,0.971,4480.9,4480.8,3.82717936]
[1759930062524,0.971,4480.9,4480.8,4.15267936]
[1759930063020,0.971,4480.9,4480.8,4.37757936]
[1759930064728,0.7611,4480.9,4480.8,4.37757936]
[1759930065924,0.5444,4481.2,4481.1,0.84406]
[1759930066126,0.223,4481.2,4481.1,2.37835008]
[1759930066526,0.223,4481.2,4481.1,1.16956]
[1759930069526,0.5433,4481.2,4481.1,1.16956]
[1759930070527,0.7709,4481.2,4481.1,1.16956]
[1759930076030,0.223,4481.2,4481.1,1.16956]
[1759930076233,0.6291,4481.8,4481.7,0.83811]
[1759930076536,0.6291,4481.8,4481.7,1.14681]
[1759930076537,1.3872,4481.8,4481.7,1.14681]
[1759930076834,1.3872,4481.8,4481.7,0.83811]
[1759930079725,1.3872,4481.8,4481.7,0.61571]
[1759930080129,0.40151,4481.7,4481.6,3.60932]
[1759930080331,1.16428,4480.9,4480.8,0.00178936]
[1759930080529,0.7627,4480.1,4480.0,6.41574764]
[1759930080724,2.19449008,4480.1,4480.0,0.61586]
[1759930080925,0.1364,4480.0,4479.5,3.2078]
[1759930081129,0.1364,4480.0,4479.5,4.3548]
[1759930081130,0.7627,4479.6,4479.5,4.3548]
[1759930081526,0.76532575,4479.6,4479.5,4.35752737]
[1759930082826,0.00262575,4479.6,4479.5,4.48462737]
[1759930083231,0.55052575,4479.6,4479.5,4.48462737]
[1759930084032,0.55052575,4479.6,4479.5,6.2814304]
[1759930084334,0.55052575,4479.6,4479.5,6.1543304]
[1759930085533,1.97411583,4479.6,4479.5,5.6232304]
[1759930086228,0.55052575,4479.6,4479.5,6.1543304]
[1759930086433,0.76532575,4479.6,4479.5,3.21052737]
[1759930088338,0.76532575,4479.6,4479.5,3.42472737]
[1759930089141,0.76532575,4479.6,4479.5,3.21052737]
[1759930089342,0.76532575,4479.6,4479.5,3.42472737]
[1759930092242,0.76532575,4479.6,4479.5,3.21052737]
[1759930092437,3.60585356,4479.6,4479.5,3.21052737]
[1759930093340,8.60585356,4479.6,4479.5,0.00272737]
[1759930093546,1.16444,4479.1,4479.0,3.2078]
[1759930093745,2.59623008,4479.1,4479.0,3.2078]
[1759930094548,2.19449008,4479.1,4479.0,3.20974138]
[1759930095646,2.19449008,4479.1,4479.0,4.13439138]
[1759930095841,2.19449008,4479.1,4479.0,4.35679138]
[1759930097040,2.59623008,4479.1,4479.0,3.20974138]
[1759930097245,2.59623008,4479.1,4479.0,3.61149138]
[1759930097646,2.59623008,4479.1,4479.0,3.20974138]
[1759930097852,2.19449008,4479.1,4479.0,3.42834138]
[1759930098249,0.7627,4479.1,4479.0,4.37979138]
[1759930098444,0.7709,4479.1,4479.0,4.37979138]
[1759930099147,0.00262575,4479.6,4479.5,0.5341]
[1759930099352,0.22562575,4479.6,4479.5,4.5102]
[1759930099851,0.78612575,4479.6,4479.5,4.5102]
[1759930100650,0.22562575,4479.6,4479.5,4.3778]
[1759930100849,0.22562575,4479.6,4479.5,4.5102]
[1759930101251,0.22562575,4479.6,4479.5,5.71899008]
[1759930102150,0.00262575,4479.6,4479.5,5.71899008]
[1759930103256,0.00262575,4479.6,4479.5,10.71899008]
[1759930103445,0.00262575,4479.6,4479.5,10.94199008]
[1759930103647,0.7678,4480.5,4480.4,1.16992]
[1759930103855,0.7678,4480.5,4480.4,4.37772]
[1759930103856,0.9801,4480.5,4480.4,4.37772]
[1759930104060,0.9801,4480.5,4480.4,4.04062]
[1759930104755,0.98236273,4480.5,4480.4,4.04062]
[1759930104956,0.98236273,4480.5,4480.4,4.37772]
[1759930105656,1.12236273,4480.5,4480.4,4.04062]
[1759930107159,0.78576273,4480.5,4480.4,4.37772]
[1759930107358,0.99306273,4480.5,4480.4,4.37772]
[1759930107755,0.78576273,4480.5,4480.4,4.37772]
[1759930107960,2.33115281,4480.5,4480.4,3.4264]
[1759930108356,2.73277281,4480.5,4480.4,3.4264]
[1759930108761,0.6724,4480.0,4479.9,0.40167]
[1759930108959,2.32889008,4480.0,4479.9,0.62027]
[1759930109567,0.9908,4480.0,4479.9,1.16997]
[1759930109757,0.7835,4480.0,4479.9,1.16997]
[1759930110262,0.89936273,4480.5,4480.4,0.83282]
[1759930110456,1.12236273,4480.5,4480.4,4.37772]
[1759930110656,1.12236273,4480.5,4480.4,4.04062]
[1759930110862,1.52398273,4480.5,4480.4,3.82802]
[1759930111064,1.12236273,4480.5,4480.4,3.82802]
[1759930111262,1.52398273,4480.5,4480.4,3.60942]
[1759930111459,1.12236273,4480.5,4480.4,3.82802]
[1759930112361,1.12236273,4480.5,4480.4,4.16512]
[1759930112562,1.12236273,4480.5,4480.4,4.37772]
[1759930113162,1.52398273,4480.5,4480.4,4.37772]
[1759930113362,1.52398273,4480.5,4480.4,3.60942]
[1759930117170,1.12236273,4480.5,4480.4,3.82802]
[1759930118073,1.12236273,4480.5,4480.4,4.16512]
[1759930118074,1.52398273,4480.5,4480.4,4.16512]
[1759930118771,1.52398273,4480.5,4480.4,3.82802]
[1759930121865,1.12236273,4480.5,4480.4,4.16152]
[1759930122071,1.12236273,4480.5,4480.4,4.36982]
[1759930122072,0.99306273,4480.5,4480.4,4.36982]
[1759930122373,1.39468273,4480.5,4480.4,4.36982]
[1759930122977,1.52028273,4480.5,4480.4,4.36982]
[1759930124075,1.11866273,4480.5,4480.4,4.36982]
[1759930124275,0.00226273,4480.5,4480.4,5.57861008]
[1759930124573,2.71507281,4480.5,4480.4,3.2078]
[1759930125164,2.71507281,4480.5,4480.4,3.60942]
[1759930125876,3.01340316,4480.5,4480.4,3.2078]
[1759930126076,0.5655,4480.0,4479.9,3.2078]
[1759930126376,3.01118043,4480.0,4479.9,3.60947]
[1759930128276,1.50406,4480.0,4479.9,3.60947]
[1759930128479,1.50406,4480.0,4479.9,3.81567]
[1759930128878,1.50406,4480.0,4479.9,3.60947]
[1759930129281,1.50406,4480.0,4479.9,3.81567]
[1759930129781,1.1024,4480.0,4479.9,4.13357]
[1759930131482,1.1024,4480.0,4479.9,3.2078]
[1759930133090,1.50406,4480.0,4479.9,3.81567]
[1759930136786,1.1024,4480.0,4479.9,3.81567]
[1759930136990,1.1024,4480.0,4479.9,4.35117]
[1759930138288,0.9768,4480.0,4479.9,4.35117]
[1759930138993,0.7523,4480.0,4479.9,4.35117]
[1759930139688,0.9606,4480.0,4479.9,4.35117]
[1759930139895,1.48546,4480.0,4479.9,4.03327]
[1759930140791,0.3094,4479.6,4479.4,0.3179]
[1759930140993,1.0814,4479.5,4479.4,0.60791]
[1759930141194,1.4831,4479.5,4479.4,0.40171]
[1759930141698,1.4831,4479.5,4479.4,0.60791]
[1759930143896,1.0814,4479.5,4479.4,0.60791]
[1759930144999,1.4831,4479.5,4479.4,0.60791]
[1759930145394,1.4831,4479.5,4479.4,0.2062]
[1759930145589,1.13694,4479.1,4479.0,0.00194138]
[1759930145788,2.86706043,4479.1,4479.0,0.00194138]
[1759930145993,5.80842124,4479.1,4479.0,0.00194138]
[1759930160510,3.67656081,4479.1,4479.0,0.61059138]
[1759930160706,1.35994,4479.1,4479.0,0.20884138]
[1759930160911,1.35994,4479.1,4479.0,0.00194138]
[1759930160912,2.86706043,4479.1,4479.0,0.00194138]
[1759930161107,5.78835345,4479.1,4479.0,0.00194138]
[1759930162909,4.28123302,4479.1,4479.0,0.00194138]
[1759930163207,5.78835345,4479.1,4479.0,0.00194138]
[1759930163609,4.28123302,4479.1,4479.0,0.20884138]
[1759930163799,4.28123302,4479.1,4479.0,0.00194138]
[1759930174414,4.05823302,4479.1,4479.0,0.00194138]
[1759930174612,4.28123302,4479.1,4479.0,0.00194138]
[1759930177219,4.28123302,4479.1,4479.0,0.40369138]
[1759930177620,4.28123302,4479.1,4479.0,0.61059138]
[1759930177820,4.05823302,4479.1,4479.0,0.95109138]
[1759930178020,4.28123302,4479.1,4479.0,1.15819138]
[1759930180024,4.28123302,4479.1,4479.0,0.81769138]
[1759930180225,4.28123302,4479.1,4479.0,0.61059138]
[1759930181021,4.28123302,4479.1,4479.0,0.40369138]
[1759930183423,4.28123302,4479.1,4479.0,0.00194138]
[1759930185925,5.49142076,4479.1,4479.0,0.40369138]
[1759930187628,5.49142076,4479.1,4479.0,0.00194138]
[1759930188619,5.49142076,4479.1,4479.0,0.40369138]
[1759930188918,5.49142076,4479.1,4479.0,0.00194138]
[1759930194728,5.49142076,4479.1,4479.0,0.40369138]
[1759930195230,5.49142076,4479.1,4479.0,0.00194138]
[1759930200231,4.28123302,4479.1,4479.0,0.00194138]
[1759930200435,1.29064,4478.0,4477.9,0.63168215]
[1759930200625,2.09898774,4478.0,4477.9,0.85738215]
[1759930200827,2.72382774,4478.0,4477.9,0.02233215]
[1759930201028,0.7575,4478.0,4477.9,1.18048215]
[1759930201238,0.2128,4479.0,4478.9,1.15806]
[1759930201430,0.13356273,4480.5,4479.9,0.40166]
[1759930201431,0.40164,4480.3,4479.9,0.40166]
[1759930201729,0.00226273,4480.5,4480.4,0.4332]
[1759930201931,0.54086273,4480.5,4480.4,0.7563]
[1759930202127,0.5386,4481.7,4481.6,0.7563]
[1759930202335,2.19068774,4481.7,4481.6,0.2075]
[1759930202535,0.8888,4481.5,4481.4,0.2075]
[1759930202740,0.9805,4481.5,4481.4,0.7563]
[1759930203038,1.11435735,4481.5,4481.4,0.4332]
[1759930203342,1.11435735,4481.5,4481.4,0.2075]
[1759930203532,1.11435735,4481.5,4481.0,0.3231]
[1759930203533,0.7575,4481.1,4481.0,0.2075]
[1759930203833,3.19942702,4481.5,4480.9,3.2078]
[1759930203834,0.3258,4481.4,4480.9,3.9641]
[1759930204036,0.13385735,4481.5,4481.4,0.7563]
[1759930204037,0.54115735,4481.5,4481.4,0.7563]
[1759930204236,0.76415735,4481.5,4481.4,3.9641]
[1759930204638,2.32454509,4481.5,4481.4,3.641]
[1759930204841,2.32454509,4481.5,4481.4,0.4332]
[1759930205140,2.32454509,4481.5,4481.4,0.2075]
[1759930205336,2.32454509,4481.5,4480.4,3.2078]
[1759930205337,0.8888,4481.0,4480.4,3.2078]
[1759930205533,0.8888,4481.0,4479.8,3.9641]
[1759930205534,0.7575,4479.9,4479.8,3.9641]
[1759930205732,2.19068774,4479.9,4479.8,3.2078]
[1759930206338,5.05309484,4479.9,4479.8,3.2078]
[1759930206536,0.3441,4479.0,4478.9,0.00260431]
[1759930206742,2.72373774,4479.0,4478.9,0.00260431]
[1759930207647,2.72373774,4479.0,4478.9,0.61186431]
[1759930207648,0.8888,4479.0,4478.9,0.61186431]
[1759930207841,0.5386,4479.0,4478.9,1.16066431]
[1759930208036,0.4358,4479.0,4478.9,1.16066431]
[1759930208241,1.1118,4479.0,4478.9,0.21010431]
[1759930208436,1.1118,4479.0,4478.9,0.00260431]
[1759930209047,3.99435242,4479.0,4478.9,0.00260431]
[1759930209240,0.1313,4478.0,4477.9,0.02233215]
[1759930209449,2.32198774,4478.0,4477.9,0.02233215]
[1759930210041,2.32198774,4478.0,4477.9,0.77863215]
[1759930210042,0.3258,4478.0,4477.9,0.77863215]
[1759930210250,0.3258,4478.5,4477.9,6.18214524]
[1759930210448,0.8888,4479.0,4478.9,0.4332]
[1759930210652,2.32198774,4479.0,4478.9,0.4332]
[1759930210851,2.32198774,4479.0,4478.9,0.2075]
[1759930211258,2.32198774,4479.0,4478.8,0.40176]
[1759930211259,2.32452465,4479.0,4478.8,0.40176]
[1759930211461,0.5447,4478.9,4478.8,1.15806]
[1759930211656,0.00253691,4479.0,4478.9,0.7563]
[1759930211856,0.98303691,4479.0,4478.9,3.641]
[1759930212160,1.11433691,4479.0,4478.9,3.4153]
[1759930212365,1.11433691,4479.0,4478.9,3.2078]
[1759930212556,1.11433691,4479.0,4478.7,0.40177]
[1759930212752,1.96768774,4478.9,4478.8,1.15806]
[1759930213154,1.96768774,4478.9,4478.8,0.4332]
[1759930213462,0.4317,4478.6,4478.5,0.2075]
[1759930213658,0.6547,4478.6,4478.5,0.2075]
[1759930213961,1.38229,4478.6,4478.5,0.2075]
[1759930214159,0.8888,4478.5,4478.4,3.2078]
[1759930214360,2.09898774,4478.5,4478.4,3.2078]
[1759930214569,0.8888,4478.0,4477.9,3.23179524]
[1759930214756,2.32198774,4478.0,4477.9,3.23179524]
[1759930215162,2.72382774,4478.0,4477.9,3.23179524]